[Event "*** Titled Tuesday Blitz"]
[Site "Chess.com"]
[Date "2021.03.09"]
[Round "8"]
[White "ErikRonka"]
[Black "KruHor"]
[Result "1-0"]
[WhiteElo "2411"]
[BlackElo "2524"]
[TimeControl "180+1"]
[EndTime "11:30:50 PST"]
[Termination "ErikRonka won by checkmate"]

1. d4 {[%clk 0:03:00.9]} 1... Nf6 {[%clk 0:02:58.7]} 2. c4 {[%clk 0:03:01]} 2...
e6 {[%clk 0:02:58.4]} 3. Nc3 {[%clk 0:03:01.4]} 3... Bb4 {[%clk 0:02:57.6]} 4.
a3 {[%clk 0:03:01.9]} 4... Bxc3+ {[%clk 0:02:57]} 5. bxc3 {[%clk 0:03:02.8]}
5... c6 {[%clk 0:02:56.4]} 6. e3 {[%clk 0:02:57.1]} 6... Qa5 {[%clk 0:02:55.3]}
7. Bd2 {[%clk 0:02:52.3]} 7... Ne4 {[%clk 0:02:54.2]} 8. Bd3 {[%clk 0:02:36.9]}
8... Nxd2 {[%clk 0:02:53]} 9. Qxd2 {[%clk 0:02:37.8]} 9... b6 {[%clk 0:02:50.1]}
10. f4 {[%clk 0:02:23.8]} 10... Ba6 {[%clk 0:02:48.9]} 11. Nf3 {[%clk
0:02:23.9]} 11... c5 {[%clk 0:02:41.5]} 12. O-O {[%clk 0:02:22.3]} 12... Qa4
{[%clk 0:02:40.3]} 13. Qe2 {[%clk 0:02:11.5]} 13... Nc6 {[%clk 0:02:39.7]} 14.
Ne5 {[%clk 0:02:00.8]} 14... Rc8 {[%clk 0:02:19.9]} 15. f5 {[%clk 0:00:56]}
15... cxd4 {[%clk 0:02:05.5]} 16. Nxf7 {[%clk 0:00:48.4]} 16... Kxf7 {[%clk
0:01:52.7]} 17. fxe6+ {[%clk 0:00:48.1]} 17... Kxe6 {[%clk 0:01:45.2]} 18. Qg4+
{[%clk 0:00:33.5]} 18... Kd6 {[%clk 0:01:42.2]} 19. Qf4+ {[%clk 0:00:33]} 19...
Ne5 {[%clk 0:01:33.7]} 20. exd4 {[%clk 0:00:29.2]} 20... Qa5 {[%clk 0:01:18.7]}
21. c5+ {[%clk 0:00:18.5]} 21... Rxc5 {[%clk 0:01:16.8]} 22. Bxa6 {[%clk
0:00:18.7]} 22... Rxc3 {[%clk 0:00:25.8]} 23. dxe5+ {[%clk 0:00:16.3]} 23... Kc6
{[%clk 0:00:25.4]} 24. Be2 {[%clk 0:00:13.9]} 24... Qc5+ {[%clk 0:00:24.4]} 25.
Kh1 {[%clk 0:00:13]} 25... Qe3 {[%clk 0:00:23.8]} 26. Bf3+ {[%clk 0:00:11.6]}
26... Kc5 {[%clk 0:00:23.8]} 27. Qb4# {[%clk 0:00:10.2]} 1-0

[Event "*** Titled Tuesday Blitz"]
[Site "Chess.com"]
[Date "2021.03.09"]
[Round "8"]
[White "KacperPolOK"]
[Black "katchesskat"]
[Result "1-0"]
[WhiteElo "2511"]
[BlackElo "2320"]
[TimeControl "180+1"]
[EndTime "11:30:52 PST"]
[Termination "KacperPolOK won by checkmate"]

1. e4 {[%clk 0:03:00.9]} 1... c5 {[%clk 0:03:00.9]} 2. Nc3 {[%clk 0:02:58.3]}
2... e6 {[%clk 0:03:00.8]} 3. g3 {[%clk 0:02:53.1]} 3... a6 {[%clk 0:02:59.4]}
4. Bg2 {[%clk 0:02:53]} 4... Qc7 {[%clk 0:02:59.6]} 5. d3 {[%clk 0:02:53]} 5...
Be7 {[%clk 0:02:59]} 6. Nf3 {[%clk 0:02:53.6]} 6... h5 {[%clk 0:02:59]} 7. h4
{[%clk 0:02:52.6]} 7... Nf6 {[%clk 0:02:59.1]} 8. Bg5 {[%clk 0:02:52]} 8... d6
{[%clk 0:02:55.2]} 9. Qd2 {[%clk 0:02:50.3]} 9... Nbd7 {[%clk 0:02:55.3]} 10.
O-O-O {[%clk 0:02:48.1]} 10... b5 {[%clk 0:02:51.5]} 11. d4 {[%clk 0:02:47.4]}
11... b4 {[%clk 0:02:45]} 12. Na4 {[%clk 0:02:40.6]} 12... Nxe4 {[%clk
0:02:43.8]} 13. Qe2 {[%clk 0:02:40.6]} 13... Nxg5 {[%clk 0:02:36.9]} 14. Nxg5
{[%clk 0:02:36.5]} 14... Bb7 {[%clk 0:02:36.3]} 15. Bxb7 {[%clk 0:02:24.5]}
15... Qxb7 {[%clk 0:02:35.9]} 16. dxc5 {[%clk 0:02:24]} 16... dxc5 {[%clk
0:02:30.1]} 17. Nxe6 {[%clk 0:02:20.7]} 17... fxe6 {[%clk 0:02:26.2]} 18. Qxe6
{[%clk 0:02:21.4]} 18... Rf8 {[%clk 0:02:20.7]} 19. Rhe1 {[%clk 0:02:17.4]}
19... Rf7 {[%clk 0:02:20.5]} 20. Qg6 {[%clk 0:01:52]} 20... Kf8 {[%clk
0:01:54.9]} 21. Qxh5 {[%clk 0:01:35.2]} 21... Nf6 {[%clk 0:01:53.7]} 22. Qh8+
{[%clk 0:01:31.9]} 22... Ng8 {[%clk 0:01:52.9]} 23. f4 {[%clk 0:01:32.4]} 23...
Qc6 {[%clk 0:01:40.6]} 24. b3 {[%clk 0:01:30]} 24... c4 {[%clk 0:01:27]} 25. Qh7
{[%clk 0:01:25.7]} 25... cxb3 {[%clk 0:01:25.3]} 26. axb3 {[%clk 0:01:25.8]}
26... Rc8 {[%clk 0:01:24.5]} 27. Qd3 {[%clk 0:01:19.8]} 27... Rf6 {[%clk
0:01:03.3]} 28. Nb2 {[%clk 0:01:13.7]} 28... Rd6 {[%clk 0:01:01.6]} 29. Qf5+
{[%clk 0:01:13.2]} 29... Nf6 {[%clk 0:00:51.6]} 30. Nc4 {[%clk 0:01:12.8]} 30...
Rxd1+ {[%clk 0:00:50.1]} 31. Rxd1 {[%clk 0:01:13.6]} 31... Rc7 {[%clk
0:00:42.4]} 32. Ne5 {[%clk 0:01:13.4]} 32... Qc3 {[%clk 0:00:39.6]} 33. Kb1
{[%clk 0:00:58.5]} 33... Qxg3 {[%clk 0:00:17.2]} 34. Qe6 {[%clk 0:00:53.8]}
34... Bc5 {[%clk 0:00:09.9]} 35. Rd8+ {[%clk 0:00:51.7]} 35... Ne8 {[%clk
0:00:06.5]} 36. Rxe8# {[%clk 0:00:51.9]} 1-0

[Event "*** Titled Tuesday Blitz"]
[Site "Chess.com"]
[Date "2021.03.09"]
[Round "8"]
[White "pastouche06"]
[Black "Chesspirate_Channel"]
[Result "1-0"]
[WhiteElo "2556"]
[BlackElo "2401"]
[TimeControl "180+1"]
[EndTime "11:30:54 PST"]
[Termination "pastouche06 won on time"]

1. d4 {[%clk 0:03:00.9]} 1... d5 {[%clk 0:02:58.4]} 2. c4 {[%clk 0:02:59.1]}
2... e5 {[%clk 0:02:58.3]} 3. dxe5 {[%clk 0:02:59]} 3... d4 {[%clk 0:02:59.2]}
4. Nf3 {[%clk 0:02:58.3]} 4... Nc6 {[%clk 0:02:59.7]} 5. a3 {[%clk 0:02:58.1]}
5... Bg4 {[%clk 0:02:59.7]} 6. Nbd2 {[%clk 0:02:56.7]} 6... Qd7 {[%clk
0:02:59.7]} 7. b4 {[%clk 0:02:44.5]} 7... f6 {[%clk 0:02:57]} 8. exf6 {[%clk
0:02:38.5]} 8... gxf6 {[%clk 0:02:57.9]} 9. g3 {[%clk 0:02:32.8]} 9... O-O-O
{[%clk 0:02:55.9]} 10. Bg2 {[%clk 0:02:32.9]} 10... Bh3 {[%clk 0:02:55.5]} 11.
O-O {[%clk 0:02:30.7]} 11... h5 {[%clk 0:02:55.4]} 12. Qa4 {[%clk 0:02:27.1]}
12... Kb8 {[%clk 0:02:54.5]} 13. Nh4 {[%clk 0:02:19.5]} 13... Bxg2 {[%clk
0:02:42.5]} 14. Kxg2 {[%clk 0:02:20.4]} 14... Nh6 {[%clk 0:02:36.3]} 15. Ndf3
{[%clk 0:02:16.2]} 15... Nf5 {[%clk 0:02:30.3]} 16. Bf4 {[%clk 0:02:10.3]} 16...
Nxh4+ {[%clk 0:02:08.5]} 17. Nxh4 {[%clk 0:02:11.2]} 17... Rg8 {[%clk
0:02:08.2]} 18. Qc2 {[%clk 0:02:02.7]} 18... Qg4 {[%clk 0:02:03.9]} 19. Kh1
{[%clk 0:01:57.7]} 19... d3 {[%clk 0:02:03.8]} 20. exd3 {[%clk 0:01:50.7]} 20...
Qh3 {[%clk 0:01:43.5]} 21. Be3 {[%clk 0:01:40.3]} 21... Rg4 {[%clk 0:01:38.9]}
22. Qe2 {[%clk 0:01:31.8]} 22... Bd6 {[%clk 0:01:33.1]} 23. Nf3 {[%clk
0:01:25.4]} 23... h4 {[%clk 0:01:29.2]} 24. Ng1 {[%clk 0:01:21.4]} 24... hxg3
{[%clk 0:01:16.7]} 25. Nxh3 {[%clk 0:01:17.5]} 25... g2+ {[%clk 0:01:16.5]} 26.
Kg1 {[%clk 0:01:17.9]} 26... Rdg8 {[%clk 0:00:50.6]} 27. Rfe1 {[%clk 0:01:12.9]}
27... Rh4 {[%clk 0:00:48.2]} 28. Qf3 {[%clk 0:01:11.5]} 28... Ne5 {[%clk
0:00:48.3]} 29. Qd5 {[%clk 0:01:11.4]} 29... Rg6 {[%clk 0:00:14.2]} 30. Nf4
{[%clk 0:00:57.8]} 30... Rxh2 {[%clk 0:00:03.1]} 31. Kxh2 {[%clk 0:00:45.8]}
31... Ng4+ {[%clk 0:00:01.1]} 32. Kg1 {[%clk 0:00:44.7]} 1-0

[Event "*** Titled Tuesday Blitz"]
[Site "Chess.com"]
[Date "2021.03.09"]
[Round "8"]
[White "nrvisakh"]
[Black "LionChessClub"]
[Result "1-0"]
[WhiteElo "2773"]
[BlackElo "2612"]
[TimeControl "180+1"]
[EndTime "11:30:55 PST"]
[Termination "nrvisakh won by resignation"]

1. e4 {[%clk 0:03:00.9]} 1... c5 {[%clk 0:02:58]} 2. Nf3 {[%clk 0:02:59.9]} 2...
g6 {[%clk 0:02:54.6]} 3. h4 {[%clk 0:02:56.8]} 3... h5 {[%clk 0:02:51.1]} 4. Bc4
{[%clk 0:02:55.1]} 4... Nc6 {[%clk 0:02:49]} 5. d3 {[%clk 0:02:53.1]} 5... d6
{[%clk 0:02:45.1]} 6. a4 {[%clk 0:02:51.1]} 6... Bg7 {[%clk 0:02:44.6]} 7. Nc3
{[%clk 0:02:49.9]} 7... Bg4 {[%clk 0:02:42.5]} 8. Nd5 {[%clk 0:02:16.2]} 8...
Nf6 {[%clk 0:02:37.1]} 9. Ne3 {[%clk 0:02:14.9]} 9... Bxf3 {[%clk 0:02:29.8]}
10. Qxf3 {[%clk 0:02:13.7]} 10... a6 {[%clk 0:02:21.1]} 11. Qg3 {[%clk
0:02:02.8]} 11... e6 {[%clk 0:02:07.6]} 12. O-O {[%clk 0:01:34.8]} 12... O-O
{[%clk 0:01:55.5]} 13. c3 {[%clk 0:01:28.3]} 13... Ne5 {[%clk 0:01:34.3]} 14. a5
{[%clk 0:00:59.5]} 14... Qe7 {[%clk 0:01:10.7]} 15. Rd1 {[%clk 0:00:54.7]} 15...
Nxc4 {[%clk 0:01:06.8]} 16. Nxc4 {[%clk 0:00:54.1]} 16... d5 {[%clk 0:01:01.6]}
17. Nb6 {[%clk 0:00:52.1]} 17... Rad8 {[%clk 0:01:01.5]} 18. Bg5 {[%clk
0:00:51.4]} 18... dxe4 {[%clk 0:00:50.6]} 19. dxe4 {[%clk 0:00:51]} 19... Rxd1+
{[%clk 0:00:51.5]} 20. Rxd1 {[%clk 0:00:50.5]} 20... Rd8 {[%clk 0:00:48.3]} 21.
Rxd8+ {[%clk 0:00:34]} 21... Qxd8 {[%clk 0:00:49.2]} 22. Qf3 {[%clk 0:00:34.4]}
22... c4 {[%clk 0:00:18.1]} 23. e5 {[%clk 0:00:33.2]} 23... Qd3 {[%clk
0:00:18.1]} 24. Qxd3 {[%clk 0:00:29.9]} 24... cxd3 {[%clk 0:00:19]} 25. exf6
{[%clk 0:00:30]} 25... Bxf6 {[%clk 0:00:19.5]} 26. Nc4 {[%clk 0:00:29.4]} 26...
Bxg5 {[%clk 0:00:17.2]} 27. hxg5 {[%clk 0:00:29.1]} 27... e5 {[%clk 0:00:18.1]}
28. f3 {[%clk 0:00:29]} 28... f6 {[%clk 0:00:19]} 29. Kf2 {[%clk 0:00:27.9]}
29... Kf7 {[%clk 0:00:19.9]} 30. Ke3 {[%clk 0:00:27.1]} 30... fxg5 {[%clk
0:00:20.1]} 31. Nxe5+ {[%clk 0:00:26.9]} 31... Ke6 {[%clk 0:00:20.7]} 32. Nxd3
{[%clk 0:00:27.1]} 1-0

[Event "*** Titled Tuesday Blitz"]
[Site "Chess.com"]
[Date "2021.03.09"]
[Round "8"]
[White "SimplyDevina"]
[Black "Tactictic"]
[Result "0-1"]
[WhiteElo "2205"]
[BlackElo "2426"]
[TimeControl "180+1"]
[EndTime "11:30:55 PST"]
[Termination "Tactictic won by resignation"]

1. d4 {[%clk 0:03:00.9]} 1... Nf6 {[%clk 0:02:59.5]} 2. c4 {[%clk 0:03:00.6]}
2... e6 {[%clk 0:02:59.8]} 3. Nc3 {[%clk 0:03:00.9]} 3... d5 {[%clk 0:02:59.7]}
4. cxd5 {[%clk 0:03:00.7]} 4... exd5 {[%clk 0:03:00.6]} 5. Bg5 {[%clk
0:03:00.5]} 5... Be7 {[%clk 0:02:58.7]} 6. e3 {[%clk 0:03:01.1]} 6... c6 {[%clk
0:02:53.5]} 7. Bd3 {[%clk 0:03:01.5]} 7... h6 {[%clk 0:02:53]} 8. Bh4 {[%clk
0:03:00.1]} 8... Nbd7 {[%clk 0:02:51.8]} 9. Qc2 {[%clk 0:02:50.4]} 9... Nh5
{[%clk 0:02:51.1]} 10. Bg3 {[%clk 0:02:40.9]} 10... Nxg3 {[%clk 0:02:47.7]} 11.
hxg3 {[%clk 0:02:41.8]} 11... Nf6 {[%clk 0:02:47.7]} 12. Nf3 {[%clk 0:02:40.3]}
12... Be6 {[%clk 0:02:46.6]} 13. Bf5 {[%clk 0:02:33.9]} 13... Qd7 {[%clk
0:02:39.3]} 14. Bxe6 {[%clk 0:02:28.4]} 14... Qxe6 {[%clk 0:02:40.2]} 15. Ne5
{[%clk 0:02:26.4]} 15... Bd6 {[%clk 0:02:23.9]} 16. Nd3 {[%clk 0:01:54.5]} 16...
O-O {[%clk 0:02:13.6]} 17. O-O {[%clk 0:01:30.8]} 17... Ng4 {[%clk 0:01:56.8]}
18. Nf4 {[%clk 0:01:17.9]} 18... Qf6 {[%clk 0:01:38.3]} 19. Qe2 {[%clk
0:01:11.5]} 19... Bxf4 {[%clk 0:01:35.3]} 20. Qxg4 {[%clk 0:01:09.8]} 20... Bd6
{[%clk 0:01:35]} 21. Rab1 {[%clk 0:01:01.1]} 21... Rfe8 {[%clk 0:01:30.7]} 22.
b4 {[%clk 0:00:58.9]} 22... a6 {[%clk 0:01:20.7]} 23. a4 {[%clk 0:00:58.1]}
23... Qe6 {[%clk 0:01:09.8]} 24. Qxe6 {[%clk 0:00:57.3]} 24... Rxe6 {[%clk
0:01:10.7]} 25. b5 {[%clk 0:00:55.5]} 25... axb5 {[%clk 0:01:09.7]} 26. axb5
{[%clk 0:00:56.4]} 26... Ra3 {[%clk 0:01:09.1]} 27. Rfc1 {[%clk 0:00:55.4]}
27... Re8 {[%clk 0:01:02.7]} 28. bxc6 {[%clk 0:00:54.4]} 28... bxc6 {[%clk
0:00:57.9]} 29. Rb6 {[%clk 0:00:54.4]} 29... Bxg3 {[%clk 0:00:30.6]} 30. fxg3
{[%clk 0:00:50.4]} 30... Rxe3 {[%clk 0:00:30.5]} 31. Rxc6 {[%clk 0:00:50.7]}
31... Rxg3 {[%clk 0:00:29.2]} 32. Nxd5 {[%clk 0:00:43.3]} 32... Rad3 {[%clk
0:00:28.5]} 33. R6c4 {[%clk 0:00:38.4]} 33... Rd2 {[%clk 0:00:27.7]} 34. R1c2
{[%clk 0:00:38.1]} 34... Rgxg2+ {[%clk 0:00:24]} 35. Kf1 {[%clk 0:00:36]} 35...
Rxc2 {[%clk 0:00:24.2]} 36. Rxc2 {[%clk 0:00:33.6]} 36... Rxc2 {[%clk
0:00:25.1]} 37. Ne3 {[%clk 0:00:34.2]} 37... Rd2 {[%clk 0:00:24.7]} 38. d5
{[%clk 0:00:33.4]} 38... Rd3 {[%clk 0:00:25]} 39. Ke2 {[%clk 0:00:33.5]} 39...
Rxe3+ {[%clk 0:00:25.2]} 40. Kxe3 {[%clk 0:00:33.9]} 40... Kf8 {[%clk
0:00:25.8]} 0-1

[Event "*** Titled Tuesday Blitz"]
[Site "Chess.com"]
[Date "2021.03.09"]
[Round "8"]
[White "NovikovaGalina"]
[Black "mr65"]
[Result "0-1"]
[WhiteElo "2392"]
[BlackElo "2116"]
[TimeControl "180+1"]
[EndTime "11:30:55 PST"]
[Termination "mr65 won by checkmate"]

1. e4 {[%clk 0:02:59]} 1... e5 {[%clk 0:02:58.5]} 2. Nf3 {[%clk 0:02:58.8]} 2...
Nc6 {[%clk 0:02:57.6]} 3. d4 {[%clk 0:02:59.4]} 3... exd4 {[%clk 0:02:56.3]} 4.
Nxd4 {[%clk 0:03:00.3]} 4... Bb4+ {[%clk 0:02:54.3]} 5. c3 {[%clk 0:02:59.7]}
5... Bc5 {[%clk 0:02:53.8]} 6. Be3 {[%clk 0:03:00.6]} 6... Bb6 {[%clk
0:02:52.9]} 7. Bc4 {[%clk 0:02:57.6]} 7... Nge7 {[%clk 0:02:49]} 8. O-O {[%clk
0:02:56.1]} 8... O-O {[%clk 0:02:48.4]} 9. Nd2 {[%clk 0:02:44.7]} 9... Nxd4
{[%clk 0:02:46.6]} 10. cxd4 {[%clk 0:02:43.6]} 10... d5 {[%clk 0:02:46.4]} 11.
Bd3 {[%clk 0:02:31.4]} 11... dxe4 {[%clk 0:02:42.5]} 12. Nxe4 {[%clk 0:02:32.3]}
12... h6 {[%clk 0:02:25.6]} 13. Bxh6 {[%clk 0:02:20.8]} 13... Qxd4 {[%clk
0:02:17.2]} 14. Be3 {[%clk 0:02:14.6]} 14... Qe5 {[%clk 0:01:56.2]} 15. Bxb6
{[%clk 0:02:12.9]} 15... axb6 {[%clk 0:01:54]} 16. Re1 {[%clk 0:02:12.2]} 16...
Ng6 {[%clk 0:01:49.4]} 17. Nc3 {[%clk 0:02:07.1]} 17... Qg5 {[%clk 0:01:46.6]}
18. Re3 {[%clk 0:01:59.9]} 18... Bf5 {[%clk 0:01:29.3]} 19. Rg3 {[%clk
0:01:57.1]} 19... Qf6 {[%clk 0:01:28.8]} 20. Qh5 {[%clk 0:01:46.8]} 20... Bxd3
{[%clk 0:01:18.5]} 21. Rxd3 {[%clk 0:01:47.7]} 21... Qh4 {[%clk 0:01:15.4]} 22.
Qxh4 {[%clk 0:01:39.9]} 22... Nxh4 {[%clk 0:01:14.5]} 23. Rd7 {[%clk 0:01:40.8]}
23... c6 {[%clk 0:01:08.4]} 24. Rxb7 {[%clk 0:01:41.7]} 24... b5 {[%clk
0:01:08]} 25. Rc7 {[%clk 0:01:41.1]} 25... b4 {[%clk 0:01:04.3]} 26. Ne4 {[%clk
0:01:38.4]} 26... Rfe8 {[%clk 0:00:59.9]} 27. Nd6 {[%clk 0:01:34.5]} 27... Rxa2
{[%clk 0:00:54.9]} 28. Rc1 {[%clk 0:01:27.6]} 28... Re2 {[%clk 0:00:49.3]} 29.
Nc4 {[%clk 0:00:53]} 29... Rc2 {[%clk 0:00:35]} 30. Rd1 {[%clk 0:00:33.5]} 30...
Rxc4 {[%clk 0:00:34.2]} 31. g3 {[%clk 0:00:34.4]} 31... Nf3+ {[%clk 0:00:33.1]}
32. Kg2 {[%clk 0:00:35.3]} 32... Ng5 {[%clk 0:00:31.7]} 33. Rd8+ {[%clk
0:00:36]} 33... Kh7 {[%clk 0:00:31.3]} 34. Rcc8 {[%clk 0:00:36.9]} 34... Rxb2
{[%clk 0:00:28.3]} 35. h4 {[%clk 0:00:37.8]} 35... Ne4 {[%clk 0:00:27]} 36. h5
{[%clk 0:00:36.6]} 36... Rxf2+ {[%clk 0:00:24.9]} 37. Kh3 {[%clk 0:00:34.8]}
37... Ng5# {[%clk 0:00:23.7]} 0-1

[Event "*** Titled Tuesday Blitz"]
[Site "Chess.com"]
[Date "2021.03.09"]
[Round "8"]
[White "jefferyx"]
[Black "Zhuu96"]
[Result "0-1"]
[WhiteElo "3005"]
[BlackElo "2909"]
[TimeControl "180+1"]
[EndTime "11:30:59 PST"]
[Termination "Zhuu96 won by resignation"]

1. d4 {[%clk 0:02:59.5]} 1... Nf6 {[%clk 0:02:59.6]} 2. Nf3 {[%clk 0:02:59.6]}
2... e6 {[%clk 0:02:59.9]} 3. Bf4 {[%clk 0:02:58.4]} 3... d5 {[%clk 0:02:57.9]}
4. e3 {[%clk 0:02:58]} 4... Bd6 {[%clk 0:02:58.5]} 5. Nbd2 {[%clk 0:02:58.7]}
5... b6 {[%clk 0:02:56.3]} 6. c3 {[%clk 0:02:45.2]} 6... O-O {[%clk 0:02:55.7]}
7. Bd3 {[%clk 0:02:39.3]} 7... Ba6 {[%clk 0:02:55.4]} 8. Bxa6 {[%clk 0:02:38.8]}
8... Nxa6 {[%clk 0:02:55.2]} 9. Qe2 {[%clk 0:02:36.2]} 9... Nb8 {[%clk
0:02:53.7]} 10. h4 {[%clk 0:02:33.6]} 10... c5 {[%clk 0:02:53.3]} 11. h5 {[%clk
0:02:32.7]} 11... h6 {[%clk 0:02:53.4]} 12. Bxd6 {[%clk 0:02:24.8]} 12... Qxd6
{[%clk 0:02:53]} 13. Ne5 {[%clk 0:02:25.7]} 13... Nc6 {[%clk 0:02:32.9]} 14. f4
{[%clk 0:02:25.9]} 14... cxd4 {[%clk 0:02:14.9]} 15. exd4 {[%clk 0:02:26.8]}
15... Nd7 {[%clk 0:02:14.8]} 16. Rh3 {[%clk 0:02:22.4]} 16... f6 {[%clk
0:02:13]} 17. Ng6 {[%clk 0:02:14.6]} 17... Rfe8 {[%clk 0:02:12.6]} 18. O-O-O
{[%clk 0:02:15.5]} 18... Rac8 {[%clk 0:02:11.4]} 19. Kb1 {[%clk 0:02:15]} 19...
b5 {[%clk 0:02:11.9]} 20. Qxb5 {[%clk 0:02:06]} 20... Rb8 {[%clk 0:02:11.1]} 21.
Qa4 {[%clk 0:02:05.3]} 21... Nb6 {[%clk 0:02:10.3]} 22. Qa6 {[%clk 0:02:01]}
22... Qd7 {[%clk 0:02:05.4]} 23. Re1 {[%clk 0:01:54.5]} 23... Nd8 {[%clk
0:02:02.8]} 24. Rhe3 {[%clk 0:01:50.4]} 24... Nf7 {[%clk 0:02:01.3]} 25. Qe2
{[%clk 0:01:44.1]} 25... Na4 {[%clk 0:01:49.3]} 26. Nb3 {[%clk 0:01:44.3]} 26...
Rb6 {[%clk 0:01:49.1]} 27. f5 {[%clk 0:01:43.6]} 27... Ng5 {[%clk 0:01:49.3]}
28. Nf4 {[%clk 0:01:38.2]} 28... e5 {[%clk 0:01:45.4]} 29. g4 {[%clk 0:01:02.2]}
29... e4 {[%clk 0:01:39.9]} 30. c4 {[%clk 0:01:02.7]} 30... dxc4 {[%clk
0:01:36]} 31. Qxc4+ {[%clk 0:01:03.6]} 31... Kh7 {[%clk 0:01:36.2]} 32. Rc1
{[%clk 0:01:00.4]} 32... Nf3 {[%clk 0:01:32.7]} 33. Ka1 {[%clk 0:00:50.4]} 33...
Ng5 {[%clk 0:01:04.7]} 34. d5 {[%clk 0:00:36]} 34... Rd6 {[%clk 0:00:58.6]} 35.
Nc5 {[%clk 0:00:33.8]} 35... Nxc5 {[%clk 0:00:56.2]} 36. Qxc5 {[%clk 0:00:34.7]}
36... Ra6 {[%clk 0:00:53.9]} 37. Qc7 {[%clk 0:00:31.3]} 37... Qb5 {[%clk
0:00:41.6]} 38. Ne6 {[%clk 0:00:23.6]} 38... Nxe6 {[%clk 0:00:41]} 39. dxe6
{[%clk 0:00:23.4]} 39... Qd5 {[%clk 0:00:40.9]} 40. Qc4 {[%clk 0:00:22.5]} 40...
Rc8 {[%clk 0:00:38.5]} 0-1

[Event "*** Titled Tuesday Blitz"]
[Site "Chess.com"]
[Date "2021.03.09"]
[Round "8"]
[White "Faqade"]
[Black "iturrizaga"]
[Result "0-1"]
[WhiteElo "2620"]
[BlackElo "2827"]
[TimeControl "180+1"]
[EndTime "11:31:02 PST"]
[Termination "iturrizaga won by resignation"]

1. e4 {[%clk 0:03:00.9]} 1... c5 {[%clk 0:03:00]} 2. Nf3 {[%clk 0:03:00.4]} 2...
Nc6 {[%clk 0:03:00.5]} 3. Bb5 {[%clk 0:02:59.8]} 3... g6 {[%clk 0:03:00.4]} 4.
O-O {[%clk 0:02:59.4]} 4... Bg7 {[%clk 0:03:00.6]} 5. c3 {[%clk 0:02:58.7]} 5...
Nf6 {[%clk 0:02:59.1]} 6. Re1 {[%clk 0:02:57.3]} 6... O-O {[%clk 0:02:58.1]} 7.
d4 {[%clk 0:02:57.1]} 7... cxd4 {[%clk 0:02:59]} 8. cxd4 {[%clk 0:02:57.5]} 8...
d6 {[%clk 0:02:59.2]} 9. h3 {[%clk 0:02:53.8]} 9... Bd7 {[%clk 0:02:58.1]} 10.
Nc3 {[%clk 0:02:52.9]} 10... Rc8 {[%clk 0:02:58.5]} 11. Be3 {[%clk 0:02:48.1]}
11... Na5 {[%clk 0:02:56.4]} 12. Bd3 {[%clk 0:02:29.7]} 12... a6 {[%clk
0:02:49.3]} 13. e5 {[%clk 0:02:26.4]} 13... Ne8 {[%clk 0:02:48.1]} 14. Bg5
{[%clk 0:02:20.5]} 14... dxe5 {[%clk 0:02:42.2]} 15. Nxe5 {[%clk 0:02:09.5]}
15... Nf6 {[%clk 0:02:24.1]} 16. d5 {[%clk 0:02:02]} 16... b5 {[%clk 0:02:16.8]}
17. a3 {[%clk 0:01:34.6]} 17... Re8 {[%clk 0:02:12.4]} 18. Qf3 {[%clk
0:01:32.2]} 18... Nb3 {[%clk 0:01:59.4]} 19. Rad1 {[%clk 0:01:29.1]} 19... Nd4
{[%clk 0:01:49.2]} 20. Qe3 {[%clk 0:00:57.7]} 20... Nf5 {[%clk 0:01:48.7]} 21.
Bxf5 {[%clk 0:00:57.6]} 21... Bxf5 {[%clk 0:01:31.3]} 22. Nc6 {[%clk 0:00:56.6]}
22... Qd7 {[%clk 0:01:23.2]} 23. Nxe7+ {[%clk 0:00:54]} 23... Kh8 {[%clk
0:01:22.5]} 24. d6 {[%clk 0:00:49.7]} 24... Rc4 {[%clk 0:01:21]} 25. Qf3 {[%clk
0:00:41]} 25... Rc5 {[%clk 0:01:13.4]} 26. Bxf6 {[%clk 0:00:17.9]} 26... Bxf6
{[%clk 0:01:10.7]} 27. g4 {[%clk 0:00:18.4]} 27... Bxe7 {[%clk 0:00:41.5]} 28.
dxe7 {[%clk 0:00:18.4]} 28... Rxe7 {[%clk 0:00:42.1]} 29. gxf5 {[%clk
0:00:16.5]} 29... Rxe1+ {[%clk 0:00:41.5]} 30. Rxe1 {[%clk 0:00:16.4]} 30...
Rxf5 {[%clk 0:00:42.4]} 31. Qe3 {[%clk 0:00:13]} 31... Kg7 {[%clk 0:00:41]} 32.
Kg2 {[%clk 0:00:12.6]} 32... Qc6+ {[%clk 0:00:40.7]} 33. Qe4 {[%clk 0:00:12.5]}
33... Qf6 {[%clk 0:00:40.8]} 34. Re2 {[%clk 0:00:10.8]} 34... h5 {[%clk
0:00:38.4]} 35. Nd5 {[%clk 0:00:09]} 35... Qg5+ {[%clk 0:00:38.6]} 36. Kh2
{[%clk 0:00:08.3]} 36... Rxd5 {[%clk 0:00:39.2]} 0-1